Cogmind - Beta 17 @@@ ROGUE MODE // 2026.07.28 @ 04:14:25 Player: TheSkyeDoctor Result: Core melted Performance ------------- Evolutions (5) 2500 Regions Visited (12) 2400 Robots Destroyed (161) 805 Value Destroyed (5017) 5017 Prototype IDs (34) 680 Alien Tech Used (0) 0 Bonus (2886) 2886 TOTAL SCORE: 14288 Bonus ------- High Alert Combat Kills 875 Follower Combat Kills 1011 Aligned with FarCom 300 Met Warlord at Base 500 MAIN.C Attacked Warlord 500 Warlord Defense Kills 610 Friendly Fire -910 Cogmind --------- Core Integrity 0/1000 Matter 15/300 Energy 23/100 System Corruption 0% Temperature Critical (677) Movement Treading (160) Location -5/Warlord Parts ------- > --- POWER (2) -------- (None) > --- PROPULSION (4) --- Improved Treads Heavy Treads > --- UTILITY (7) ------ Improved Heat Sink Large Storage Unit Improved Terrain Scanner Improved Terrain Scan Processor Experimental Utility Shielding Improved Focal Shield > --- WEAPON (4) ------- Beamcaster Coil Gun > --- INVENTORY (15) --- Armored Medium Treads Wheel High-capacity Battery (250) High-capacity Matter Pod (200) Seismic Detector Layered Light Armor Plating Advanced Thermal Shield Advanced Hacking Suite Heavy Particle Gun Advanced Plasma Cannon Advanced Plasma Cannon Heavy Machine Gun Missile Launcher Improved Datajack Peak State ------------ > --- POWER ------------ Enhanced Nuclear Core Neutrino Core > --- PROPULSION ------- Heavy Treads Heavy Treads > --- UTILITY ---------- Improved Heat Sink Large Storage Unit Advanced Signal Interpreter Improved Terrain Scanner Improved Terrain Scan Processor Experimental Utility Shielding Improved Focal Shield > --- WEAPON ----------- Beamcaster Advanced Plasma Cannon Coil Gun Linear Accelerator > --- INVENTORY -------- Improved Treads Armored Medium Treads Wheel High-capacity Battery High-capacity Matter Pod Seismic Detector Layered Light Armor Plating Advanced Thermal Shield Advanced Hacking Suite Heavy Particle Gun Advanced Plasma Cannon Advanced Plasma Cannon Heavy Machine Gun Missile Launcher Improved Datajack [Rating: 91] Favorites ----------- Power Enhanced Nuclear Core Engine Light Ion Engine Power Core Enhanced Nuclear Core Reactor Antimatter Reactor Propulsion Heavy Treads Treads Heavy Treads Leg Carbon-fiber Leg Wheel Compact Wheel Utility Large Storage Unit Device Seismic Detector Storage Large Storage Unit Processor Improved Terrain Scan Processor Protection Utility Shielding Weapon Advanced Plasma Cannon Energy Gun Gatling Laser Energy Cannon Advanced Plasma Cannon Ballistic Gun Gauss Rifle Ballistic Cannon Linear Accelerator Launcher Heavy Rocket Launcher Slashing Weapon Katana Special Melee Weapon Improved Datajack Build | -11 -10 -10 -10 -9 -8 -7 -6 -5 -5 -5 -5 -5 ------- Run | Yrd Mat Min Exi Min Mat Fac Fac Fac Was Fac Upp War Slots Evolved 10 | . . . . . 4 2 2 2 . . . . Power 1 | . . . . . . . . 1 . . . . Propulsion 2 | . . . . . 1 1 . . . . . . Utility 5 | . . . . . 1 1 2 1 . . . . Weapon 2 | . . . . . 2 . . . . . . . Parts Attached 55 | 7 4 . . 3 8 12 4 2 3 2 6 4 Power 8 | 1 1 . . 1 1 2 . . 1 . 1 . Engine 3 | 1 1 . . . 1 . . . . . . . Core 4 | . . . . 1 . 2 . . . . 1 . Reactor 1 | . . . . . . . . . 1 . . . Propulsion 14 | 2 1 . . 1 2 4 . 1 2 . . 1 Treads 10 | 2 . . . 1 2 1 . 1 2 . . 1 Leg 1 | . . . . . . 1 . . . . . . Wheel 3 | . 1 . . . . 2 . . . . . . Hover . | . . . . . . . . . . . . . Flight . | . . . . . . . . . . . . . Utility 14 | 2 1 . . . 1 3 3 1 . . 2 1 Device 4 | 1 . . . . . 1 1 1 . . . . Storage 2 | 1 1 . . . . . . . . . . . Processor 3 | . . . . . . . 2 . . . 1 . Hackware . | . . . . . . . . . . . . . Protection 5 | . . . . . 1 2 . . . . 1 1 Artifact . | . . . . . . . . . . . . . Weapon 19 | 2 1 . . 1 4 3 1 . . 2 3 2 Energy Gun 4 | 1 . . . . 1 1 . . . . 1 . Energy Cannon 4 | . . . . . 2 . . . . 1 1 . Ballistic Gun 5 | 1 . . . . 1 2 . . . . . 1 Ballistic Cannon 2 | . 1 . . . . . . . . . 1 . Launcher 2 | . . . . . . . 1 . . 1 . . Special Weapon . | . . . . . . . . . . . . . Impact Weapon . | . . . . . . . . . . . . . Slashing Weapon 1 | . . . . 1 . . . . . . . . Piercing Weapon . | . . . . . . . . . . . . . Special Melee Weapon 1 | . . . . . . . . . . . . 1 Unidentified Prototypes 3 | . . . . . 1 1 . . . . . 1 Parts Lost 26 | . . . . 5 3 7 2 . . 1 3 5 Power 7 | . . . . 1 1 2 . . . . 1 2 Propulsion 9 | . . . . 3 1 2 2 . . . . 1 Utility 2 | . . . . . . 1 . . . . 1 . Weapon 8 | . . . . 1 1 2 . . . 1 1 2 Highest Loss Streak 5 | . . . . 2 1 2 1 . . 1 2 5 To Critical Strikes . | . . . . . . . . . . . . . Average Backups 11 | . 3 5 6 7 11 13 10 11 13 14 13 15 Power 1 | . 1 1 1 . 1 1 1 1 1 2 1 . Propulsion 1 | . . 1 1 1 . . . . 1 2 2 3 Utility 4 | . 2 3 4 5 6 5 4 4 4 4 3 5 Weapon 3 | . . . . 1 3 5 4 5 5 5 5 5 Tool/Special . | . . . . . . . . . . . . . Unused Backups 11 | . 1 . . . 1 . . . . 1 . 8 Power 3 | . 1 . . . . . . . . 1 . 1 Propulsion . | . . . . . . . . . . . . . Utility 5 | . . . . . 1 . . . . . . 4 Weapon 3 | . . . . . . . . . . . . 3 Tool/Special . | . . . . . . . . . . . . . Average Slot Usage (%) 87 | . 95 100 100 93 83 81 85 78 86 88 88 87 Engine 3 | . 12 14 14 8 5 2 . . . . . . Core 5 | . . . . 5 3 4 6 5 5 5 9 10 Treads 14 | . 26 28 28 18 13 15 . 3 9 11 11 11 Wheel 2 | . . . . 3 6 1 9 5 1 . . . Device 13 | . 14 14 14 14 9 7 13 16 17 17 18 17 Storage 7 | . 14 14 14 14 9 7 6 5 5 5 5 5 Processor 4 | . . . . . . . 8 11 11 11 9 10 Protection 6 | . . . . . 9 15 10 5 5 5 5 5 Energy Gun 8 | . 12 14 14 14 8 8 8 5 5 5 5 5 Energy Cannon 4 | . . . . . 9 5 . . . 3 10 6 Ballistic Gun 2 | . 2 . . . . 3 13 11 11 6 . . Ballistic Cannon 3 | . 10 14 14 5 . . . . . . 4 4 Launcher 1 | . . . . . . . 3 5 5 5 . . Slashing Weapon 2 | . . . . 8 9 4 . . . . . . Peak Build Rating 91 | 7 8 8 10 13 44 50 42 52 78 81 90 91 Average Rating 49 | 5 6 8 9 11 39 46 40 48 72 79 86 88 On Entrance 35 | . 7 8 8 10 12 43 37 40 52 78 80 90 Avg Prop Armor Cover (%) 12 | . . . . . 18 4 4 8 8 . . . Naked Turns . | . . . . . . . . . . . . . Heaviest Build 86 | 12 29 29 29 30 53 63 53 54 70 75 86 85 Greatest Support 140 | 40 40 40 40 40 40 62 20 27 140 140 140 140 Greatest Overweight (x) 7 | . 7 . . 1 3 4 5 5 5 . . . Average Overweight (x) . | . . . . . 2 . 3 4 1 . . . Largest Inventory Capacity 15 | 8 15 15 15 15 15 15 15 15 15 15 15 15 Average Capacity 14 | 7 14 15 15 15 15 15 15 15 15 15 15 15 Most Carried 15 | 2 5 6 9 10 15 15 11 11 15 15 15 15 Average Carried 11 | . 3 5 7 8 11 13 10 11 13 14 13 14 Final Capacity 15 | 8 15 15 15 15 15 15 15 15 15 15 15 15 Final Carried 15 | 2 5 6 9 7 15 12 11 11 15 15 15 14 Class Distribution -------------------- 37% | Scavenger-Tank 20% | Mutant 16% | Skirmisher 13% | Tank 10% | Scavenger-Skirmisher Dominant Class ---------------- Mutant | -10/Materials Mutant | -10/Mines Mutant | -10/Exiles Mutant | -9/Mines Skirmisher | -8/Materials Tank | -7/Factory Skirmisher | -6/Factory Skirmisher | -5/Factory Scavenger-Tank | -5/Waste Scavenger-Tank | -5/Factory Scavenger-Tank | -5/Upper Caves Scavenger-Tank | -5/Warlord Resources | -11 -10 -10 -10 -9 -8 -7 -6 -5 -5 -5 -5 -5 ----------- Run | Yrd Mat Min Exi Min Mat Fac Fac Fac Was Fac Upp War Matter Collected 2177 | 277 127 48 167 63 343 209 100 . . 375 468 . Remotely . | . . . . . . . . . . . . . Salvage Created 5006 | 95 264 . . 190 1366 1832 191 . . 545 402 121 Parts 237 | 10 17 . . 17 55 91 4 . . 30 10 3 Haulers Intercepted 6 | . . . . . 3 2 . . . 1 . . Recyclers Shooed 1 | . . . . . . 1 . . . . . . Parts Field Recycled . | . . . . . . . . . . . . . Retrieved Matter . | . . . . . . . . . . . . . Parts Self-Destructed 6 | . . . . . . . . . . . 6 . Prevented . | . . . . . . . . . . . . . Parts Restored . | . . . . . . . . . . . . . Kills | -11 -10 -10 -10 -9 -8 -7 -6 -5 -5 -5 -5 -5 ------- Run | Yrd Mat Min Exi Min Mat Fac Fac Fac Was Fac Upp War Combat Hostiles Destroyed 97 | . 3 . . 9 31 25 6 . . 13 5 5 Melee 1 | . . . . 1 . . . . . . . . Guns 26 | . . . . 8 2 7 2 . . 5 . 2 Cannons 26 | . 3 . . . 7 10 . . . . 4 2 AOE 38 | . . . . . 18 6 4 . . 8 1 1 Classes Destroyed 19 | 2 3 . . 2 6 2 . . . 1 . 3 Worker 15 | . . . . . 3 9 . . . 3 . . Builder 11 | . . . . . 1 5 . . . 5 . . Tunneler 4 | 2 . . . . . 2 . . . . . . Hauler 6 | . . . . . 3 2 . . . 1 . . Recycler 13 | 1 2 . . . 2 8 . . . . . . Mechanic 1 | . . . . . . 1 . . . . . . Operator 1 | . 1 . . . . . . . . . . . Watcher 8 | . 1 . . . 5 1 . . . 1 . . Swarmer 24 | . . . . 6 7 6 . . . 5 . . Saboteur 1 | . . . . . . . . . . . . 1 Grunt 48 | . 3 . . 2 15 13 6 . . 3 4 2 Brawler 4 | . . . . . 2 1 . . . . 1 . Duelist 2 | . . . . 1 . 1 . . . . . . Sentry 9 | . . . . . 5 3 . . . 1 . . Demolisher 1 | . . . . . . . . . . . . 1 Specialist 3 | . . . . . 2 . . . . 1 . . Hunter 2 | . . . . . . . . . . 2 . . Programmer 2 | . . . . . . 1 . . . 1 . . Striker 1 | . . . . . . . . . . . . 1 Wasp 3 | . . . . . . . . . . 3 . . Thug 1 | . . . . . . . . . . . 1 . Butcher 1 | . . . . . . . . . . . 1 . Best Kill Streak 20 | 1 3 . . 4 5 20 4 . . 8 3 5 Combat Bots Only 6 | . 3 . . 4 4 6 4 . . 5 3 5 Max Kills in Single Turn 8 | 1 1 . . 1 4 4 3 . . 8 2 1 Gunslinging 1 | . . . . . . 1 . . . . . . Exploded 5 | . . . . . 4 2 3 . . 5 1 1 Melee 1 | . . . . 1 . . . . . . . . Uniques/NPCs Destroyed . | . . . . . . . . . . . . . Combat | -11 -10 -10 -10 -9 -8 -7 -6 -5 -5 -5 -5 -5 -------- Run | Yrd Mat Min Exi Min Mat Fac Fac Fac Was Fac Upp War Hostile Shots Fired 397 | . 12 . . 62 66 157 25 . . 20 25 30 Missed 128 | . 4 . . 17 22 63 8 . . 3 5 6 Hits 269 | . 8 . . 45 44 94 17 . . 17 20 24 Melee 12 | . . . . 6 . 1 . . . . 1 4 Projectile 257 | . 8 . . 39 44 93 17 . . 17 19 20 AOE 6 | . . . . . . . . . . . . 6 Critical Strikes 14 | . . . . 1 1 4 2 . . 1 2 3 Damage Taken 5884 | . 103 . . 548 860 1261 327 . . 477 802 1506 Core 1530 | . 25 . . 117 166 83 41 . . . 352 746 Absorbed by Shields . | . . . . . . . . . . . . . Redirected to Shielding 64 | . . . . . 7 21 . . . . . 36 Ignored by Resistances 222 | . . . . . . . . . . 103 . 119 Regen/Repaired (Parts) 421 | . . . . . . . . . . . . 421 Core Remaining (%) 79 | 100 . . . 43 69 88 95 . . . . . Volleys Fired 180 | 7 13 . . 30 43 37 7 . . 21 8 14 Largest 4 | 2 2 . . 2 3 4 4 . . 4 4 4 Hottest 330 | 70 80 . . 80 161 208 175 . . 245 330 263 Shots Fired 453 | 14 25 . . 37 86 103 28 . . 77 33 50 Gun 265 | 14 12 . . 30 43 76 21 . . 41 9 19 Cannon 156 | . 13 . . 7 43 27 . . . 18 23 25 Launcher 32 | . . . . . . . 7 . . 18 1 6 Special . | . . . . . . . . . . . . . Kinetic 126 | 7 13 . . 7 6 31 14 . . 23 8 17 Thermal 287 | 7 12 . . 30 72 72 7 . . 36 24 27 Explosive 32 | . . . . . . . 7 . . 18 1 6 Electromagnetic 8 | . . . . . 8 . . . . . . . Robot Hit Streak 13 | 5 4 . . 12 8 13 7 . . 9 6 6 Robot Miss Streak 10 | 3 2 . . 2 9 10 7 . . 4 4 4 Penetration Max 1 | . . . . . . 1 . . . . . . Secondary Targets 4 | . . . . . . 4 . . . . . . Max Gunslinging Chain 2 | . . . . . . 2 . . . . . . Shots Hit Robots 241 | 8 14 . . 31 39 51 12 . . 45 18 23 Core Hits 225 | 4 11 . . 12 44 62 15 . . 47 13 17 Critical Kills 6 | . . . . . 4 2 . . . . . . Critical Parts Destroyed 1 | . . . . . . . 1 . . . . . Critical Strikes 16 | 1 . . . 5 6 3 1 . . . . . Burn 7 | 1 . . . 4 2 . . . . . . . Meltdown 6 | . . . . . 4 2 . . . . . . Destroy 1 | . . . . . . . 1 . . . . . Sever 2 | . . . . 1 . 1 . . . . . . Melee Attacks 9 | . . . . 7 . 2 . . . . . . Impact . | . . . . . . . . . . . . . Slashing 9 | . . . . 7 . 2 . . . . . . Piercing . | . . . . . . . . . . . . . Sneak Attacks . | . . . . . . . . . . . . . Combat Hostiles . | . . . . . . . . . . . . . Follow-up Attacks . | . . . . . . . . . . . . . Damage Inflicted 18387 | 78 215 . . 528 5923 5666 1008 . . 3255 731 983 Guns 2633 | 78 75 . . 303 246 784 213 . . 523 182 229 Cannons 6273 | . 140 . . 66 2581 2523 . . . 228 343 392 Explosions 9256 | . . . . . 3096 2293 795 . . 2504 206 362 Melee 225 | . . . . 159 . 66 . . . . . . Ramming . | . . . . . . . . . . . . . Kinetic 1121 | 42 140 . . 66 26 324 78 . . 238 40 167 Thermal 13784 | 36 75 . . 303 5526 5167 135 . . 1603 485 454 Explosive 3021 | . . . . . 182 62 795 . . 1414 206 362 Electromagnetic 236 | . . . . . 189 47 . . . . . . Impact . | . . . . . . . . . . . . . Slashing 225 | . . . . 159 . 66 . . . . . . Piercing . | . . . . . . . . . . . . . Highest Corruption 3 | . . . . . . 3 . . . 2 2 2 Average Corruption 1 | . . . . . . 1 . . . 2 2 2 Corruption Purged . | . . . . . . . . . . . . . Corruption Blocked . | . . . . . . . . . . . . . Effects 19 | . . . . . . 10 . . . 2 5 2 Message Errors 5 | . . . . . . 2 . . . 1 1 1 Matter Fused 4 | . . . . . . 2 . . . . 2 . Heat Flow Errors 3 | . . . . . . 2 . . . . 1 . Energy Discharges 2 | . . . . . . 1 . . . 1 . . Parts Rejected 1 | . . . . . . 1 . . . . . . Data Loss (major) 1 | . . . . . . 1 . . . . . . Misfires 1 | . . . . . . . . . . . 1 . Alerts 1 | . . . . . . . . . . . . 1 Weapon Failures 1 | . . . . . . 1 . . . . . . Overload Shots . | . . . . . . . . . . . . . Overflow Damage 1913 | . . . . . 765 886 18 . . 157 58 29 Projectiles 1146 | . . . . . 456 690 . . . . . . Explosions 757 | . . . . . 309 186 18 . . 157 58 29 Melee 10 | . . . . . . 10 . . . . . . Knockbacks 3 | . 1 . . 2 . . . . . . . . Impact . | . . . . . . . . . . . . . Kinetic 3 | . 1 . . 2 . . . . . . . . Secondary . | . . . . . . . . . . . . . Self-Inflicted Damage 496 | . . . . . 295 91 . . . 48 43 19 Shots 11 | . . . . . 6 2 . . . 1 1 1 Rammed . | . . . . . . . . . . . . . Targets Rammed . | . . . . . . . . . . . . . Kicked . | . . . . . . . . . . . . . Crushed . | . . . . . . . . . . . . . Highest Temperature 852 | 60 195 . . 238 414 393 224 . . 458 836 852 Average Temperature 151 | 25 77 . . 106 95 109 117 . . 157 283 528 Received Heat Transfer 1032 | . 57 . . 96 207 285 195 . . 18 156 18 Effects 76 | . . . . . 6 2 . . . 6 26 36 Shutdowns 17 | . . . . . 1 . . . . 4 6 6 Energy Bleed 6 | . . . . . . 1 . . . 1 1 3 Interference 11 | . . . . . 3 . . . . 1 2 5 Matter Decay 8 | . . . . . 1 . . . . . 4 3 Short Circuit 4 | . . . . . 1 1 . . . . 1 1 Damage (minor) 7 | . . . . . . . . . . . 2 5 Damage (major) 18 | . . . . . . . . . . . 8 10 Damage (core) 5 | . . . . . . . . . . . 2 3 Siege Activations 1 | . . . . . . . . . . 1 . . Total Turns 17 | . . . . . . . . . . 17 . . Longest Duration 17 | . . . . . . . . . . 17 . . Martial Activations . | . . . . . . . . . . . . . Shielding Activations . | . . . . . . . . . . . . . Robots Disrupted 1 | . . . . . . 1 . . . . . . Combat Hostiles 1 | . . . . . . 1 . . . . . . Robots Corrupted 1 | . . . . . 1 . . . . . . . Combat Hostiles . | . . . . . . . . . . . . . Parts Fried 6 | . . . . . 5 . . . . . 1 . Impact Corruptions . | . . . . . . . . . . . . . Robots Melted 6 | . . . . . 4 2 . . . . . . Combat Hostiles 6 | . . . . . 4 2 . . . . . . Parts Melted 17 | 1 . . . 2 6 8 . . . . . . Heat Transferred 15598 | 185 222 . . 1184 5445 4824 300 . . 1825 875 738 Parts Sabotaged . | . . . . . . . . . . . . . Parts Stolen . | . . . . . . . . . . . . . Parts Stripped . | . . . . . . . . . . . . . Power Chain Reactions 1 | . . . . . 1 . . . . . . . Alert | -11 -10 -10 -10 -9 -8 -7 -6 -5 -5 -5 -5 -5 ------- Run | Yrd Mat Min Exi Min Mat Fac Fac Fac Was Fac Upp War Maximum Alert Level 5 | . . . . . 3 4 2 1 . 5 . . Low Security (%) 39 | 100 100 100 . 100 39 . . 3 100 7 . . Level 1 27 | . . . . . 23 54 . 96 . 40 . . Level 2 16 | . . . . . 18 16 100 . . 4 . . Level 3 8 | . . . . . 18 12 . . . 11 . . Level 4 4 | . . . . . . 14 . . . 8 . . Level 5 3 | . . . . . . . . . . 27 . . High Security . | . . . . . . . . . . . . . Max Security . | . . . . . . . . . . . . . Peak Influence 2017 | 5 60 11 . 120 854 1193 651 284 67 2017 . . Initial 566 | . . 11 . . 27 368 566 284 67 . . . Average 394 | . 10 2 . 37 366 551 585 241 25 896 . . Influence Increases 6010 | 15 92 . . 240 1297 1287 215 . . 2578 186 100 Destroy 0b10 Robot/C 2420 | . 60 . . 180 620 500 120 . . 700 140 100 Destroy 0b10 Robot/NC 325 | 15 20 . . . 70 140 . . . 80 . . Destroy Leader 506 | . 12 . . 30 136 106 20 . . 182 20 . Allied During Kill 819 | . . . . . . . . . . 793 26 . Successful Hack 35 | . . . . . 8 . 27 . . . . . Disable Machine 600 | . . . . . 120 135 . . . 345 . . Anti-Garrison Action 150 | . . . . . . 150 . . . . . . Destroy Structure 960 | . . . . . 268 166 48 . . 478 . . Partial Spotted 30 | . . . . . 30 . . . . . . . Lose Combat Pursuer 165 | . . . . 30 45 90 . . . . . . Influence Decreases 5978 | 15 62 30 . 168 557 942 791 387 194 572 1083 1177 Entered New Map 3375 | . . 19 . . 45 444 591 297 127 . 743 1109 Time Decay 2103 | 15 62 11 . 138 482 428 180 90 67 302 310 18 Lost Part 240 | . . . . 30 30 70 20 . . 10 30 50 Lost Ally 260 | . . . . . . . . . . 260 . . Squads Dispatched 21 | . . . . . 2 6 2 . . 11 . . Investigation . | . . . . . . . . . . . . . Extermination 2 | . . . . . . 1 . . . 1 . . Reinforcement 12 | . . . . . 2 2 1 . . 7 . . Assault 4 | . . . . . . 2 1 . . 1 . . Garrison 3 | . . . . . . 1 . . . 2 . . Intercept . | . . . . . . . . . . . . . Searches Triggered . | . . . . . . . . . . . . . Construction Impeded 3 | . . . . . . 1 1 . . 1 . . Haulers Reinforced 3 | . . . . . . 1 . . . 2 . . Active Scanning Responses . | . . . . . . . . . . . . . Cargo Convoy Interrupts . | . . . . . . . . . . . . . Stealth | -11 -10 -10 -10 -9 -8 -7 -6 -5 -5 -5 -5 -5 --------- Run | Yrd Mat Min Exi Min Mat Fac Fac Fac Was Fac Upp War Distress Signals 6 | . . . . . 1 1 . . . 3 . 1 Communications Jammed . | . . . . . . . . . . . . . Distress Signals . | . . . . . . . . . . . . . Times Spotted 145 | . 5 . . 12 39 42 6 . . 27 6 8 Peak Tracking Total 8 | . 2 . . 5 5 6 4 . . 7 3 8 Tactical Retreats 7 | . . . . 2 2 3 . . . . . . Traps | -11 -10 -10 -10 -9 -8 -7 -6 -5 -5 -5 -5 -5 ------- Run | Yrd Mat Min Exi Min Mat Fac Fac Fac Was Fac Upp War Traps Triggered 9 | . 4 . . . . 1 1 1 . 2 . . Indirectly . | . . . . . . . . . . . . . Trap Hack Attempts . | . . . . . . . . . . . . . Triggered . | . . . . . . . . . . . . . Disarmed . | . . . . . . . . . . . . . Reprogrammed . | . . . . . . . . . . . . . Reused . | . . . . . . . . . . . . . Traps Extracted . | . . . . . . . . . . . . . Installed . | . . . . . . . . . . . . . Triggered . | . . . . . . . . . . . . . Machines | -11 -10 -10 -10 -9 -8 -7 -6 -5 -5 -5 -5 -5 ---------- Run | Yrd Mat Min Exi Min Mat Fac Fac Fac Was Fac Upp War Machines Disabled 41 | . . . . . 8 10 . . . 23 . . Max in Single Turn 15 | . . . . . 1 4 . . . 15 . . Garrison Access 2 | . . . . . . 1 1 . . . . . Machines Repaired . | . . . . . . . . . . . . . Machines Dismantled . | . . . . . . . . . . . . . Machines Sabotaged . | . . . . . . . . . . . . . Overloaded Fab Kills . | . . . . . . . . . . . . . Hacking | -11 -10 -10 -10 -9 -8 -7 -6 -5 -5 -5 -5 -5 --------- Run | Yrd Mat Min Exi Min Mat Fac Fac Fac Was Fac Upp War Machines Accessed 11 | . . . 1 . 1 3 2 . . . . 4 Terminals 4 | . . . . . 1 2 1 . . . . . Fabricators . | . . . . . . . . . . . . . Repair Stations . | . . . . . . . . . . . . . Recycling Units . | . . . . . . . . . . . . . Scanalyzers . | . . . . . . . . . . . . . Garrison Access 2 | . . . . . . 1 1 . . . . . Total Hacks 22 | . . . 1 . 1 5 2 . . . . 13 Successful 17 | . . . 1 . 1 . 2 . . . . 13 Failed 5 | . . . . . . 5 . . . . . . Catastrophic 1 | . . . . . . 1 . . . . . . Database Lockouts . | . . . . . . . . . . . . . Manual 2 | . . . 1 . 1 . . . . . . . Terminals 5 | . . . . . 1 3 1 . . . . . Fabricators . | . . . . . . . . . . . . . Repair Stations . | . . . . . . . . . . . . . Recycling Units . | . . . . . . . . . . . . . Scanalyzers . | . . . . . . . . . . . . . Garrison Access 3 | . . . . . . 2 1 . . . . . Terminal Hacks 16 | . . . 1 . 1 . 1 . . . . 13 Record 8 | . . . . . . . . . . . . 8 Prototype ID Bank 4 | . . . . . . . . . . . . 4 Open Door 1 | . . . . . . . . . . . . 1 Branch Access Points 2 | . . . . . 1 . 1 . . . . . Proto ID Catalog 1 | . . . 1 . . . . . . . . . Fabricator Hacks . | . . . . . . . . . . . . . Repair Station Hacks . | . . . . . . . . . . . . . Recycling Unit Hacks . | . . . . . . . . . . . . . Scanalyzer . | . . . . . . . . . . . . . Garrison Access Hacks 1 | . . . . . . . 1 . . . . . Seal Access 1 | . . . . . . . 1 . . . . . Unauthorized Hacks . | . . . . . . . . . . . . . Terminals . | . . . . . . . . . . . . . Fabricators . | . . . . . . . . . . . . . Repair Stations . | . . . . . . . . . . . . . Recycling Units . | . . . . . . . . . . . . . Scanalyzers . | . . . . . . . . . . . . . Garrison Access . | . . . . . . . . . . . . . Data Cores Recovered . | . . . . . . . . . . . . . Used . | . . . . . . . . . . . . . Hacking Detections 4 | . . . . . . 3 1 . . . . . Full Trace Events . | . . . . . . . . . . . . . Feedback Events . | . . . . . . . . . . . . . Feedback Blocked . | . . . . . . . . . . . . . Robot Schematics Acquired . | . . . . . . . . . . . . . Robots Built . | . . . . . . . . . . . . . Authchips . | . . . . . . . . . . . . . Time . | . . . . . . . . . . . . . Total Robot Build Rating . | . . . . . . . . . . . . . Part Schematics Acquired . | . . . . . . . . . . . . . Parts Built . | . . . . . . . . . . . . . Authchips . | . . . . . . . . . . . . . Time . | . . . . . . . . . . . . . Total Part Build Rating . | . . . . . . . . . . . . . Part Studies Acquired . | . . . . . . . . . . . . . Parts Repaired . | . . . . . . . . . . . . . Time . | . . . . . . . . . . . . . Parts Recycled . | . . . . . . . . . . . . . Recycled Matter . | . . . . . . . . . . . . . Retrieved Matter . | . . . . . . . . . . . . . Retrieved Components . | . . . . . . . . . . . . . Parts Scanalyzed . | . . . . . . . . . . . . . Part Schematics Acquired . | . . . . . . . . . . . . . Parts Damaged . | . . . . . . . . . . . . . Bothacking | -11 -10 -10 -10 -9 -8 -7 -6 -5 -5 -5 -5 -5 ------------ Run | Yrd Mat Min Exi Min Mat Fac Fac Fac Was Fac Upp War Used RIF Installer . | . . . . . . . . . . . . . Robots Hacked . | . . . . . . . . . . . . . Non-combat . | . . . . . . . . . . . . . Combat . | . . . . . . . . . . . . . Robot Hacks Applied . | . . . . . . . . . . . . . Relay Couplers Released 2 | . . . . . . 2 . . . . . . Machine Destruction 2 | . . . . . . 2 . . . . . . Fabnet Peak Effective % . | . . . . . . . . . . . . . Robots Rewired . | . . . . . . . . . . . . . Allies Hacked 1 | . . . . . . . . . . 1 . . Hacks Repelled . | . . . . . . . . . . . . . Allies | -11 -10 -10 -10 -9 -8 -7 -6 -5 -5 -5 -5 -5 -------- Run | Yrd Mat Min Exi Min Mat Fac Fac Fac Was Fac Upp War Total Allies 20 | . . . . . . . . . 20 . . . Largest Group 20 | . . . . . . . . . 20 20 2 . Highest-Rated Group 773 | . . . . . . . . . 773 773 75 . Highest-Rated Ally 50 | . . . . . . . . . 50 50 46 . Total Orders . | . . . . . . . . . . . . . Ally Attacks 191 | . . . . . . . . . . 175 16 . Total Damage 4951 | . . . . . . . . . . 4507 444 . Kills 31 | . . . . . . . . . . 28 3 . Allies Corrupted . | . . . . . . . . . . . . . Allies Melted 1 | . . . . . . . . . . . . 1 Intel | -11 -10 -10 -10 -9 -8 -7 -6 -5 -5 -5 -5 -5 ------- Run | Yrd Mat Min Exi Min Mat Fac Fac Fac Was Fac Upp War Active Infowar (turns) 6498 | 95 364 94 425 510 1236 704 379 187 199 666 689 950 Terrain 3070 | . . . . . . . 379 187 199 666 689 950 Seismic 3653 | 95 364 94 425 510 1236 704 . . . . 225 . Robot Analysis Total . | . . . . . . . . . . . . . Derelict Logs Recovered . | . . . . . . . . . . . . . Drone Launches . | . . . . . . . . . . . . . Drone Recoveries . | . . . . . . . . . . . . . Exploration | -11 -10 -10 -10 -9 -8 -7 -6 -5 -5 -5 -5 -5 ------------- Run | Yrd Mat Min Exi Min Mat Fac Fac Fac Was Fac Upp War Turns Passed 6969 | 190 364 94 425 510 1258 1048 379 187 199 666 689 960 Spaces Moved 3815 | 102 185 59 265 279 637 506 253 119 97 347 403 563 Core 5 | 4 1 . . . . . . . . . . . Treads 2657 | 98 183 59 265 180 100 386 . 1 72 347 403 563 Legs 5 | . . . . . . 5 . . . . . . Wheels 1148 | . 1 . . 99 537 115 253 118 25 . . . Hover . | . . . . . . . . . . . . . Flight . | . . . . . . . . . . . . . Fastest Speed 50 | 50 115 160 160 115 115 110 110 155 155 160 160 160 Average Speed 158 | 155 162 160 160 150 160 165 130 155 158 160 160 160 Slowest Speed 400 | 160 400 160 160 240 250 330 155 250 160 160 160 160 Overloaded Moves . | . . . . . . . . . . . . . Propulsion Burnouts . | . . . . . . . . . . . . . Robots Hopped . | . . . . . . . . . . . . . Potential Cave-ins . | . . . . . . . . . . . . . Cave-ins Triggered . | . . . . . . . . . . . . . Exploration Rate (%) 35 | 5 32 10 60 41 73 22 6 2 73 18 46 67 Regions Visited 12 Branch Regions 5 Pre-discovered Areas 1 | . . . . 1 . . . . . . . . Known Exits Taken 1 | . . . . . . . . . . . 1 . Unknown Exits Taken 9 | 1 1 1 1 1 1 1 1 . . 1 . . Scrap Searched 4 | . . 1 . 1 . . . . . . 2 . Spaces Dug 1 | . . . . . . . . . . 1 . . Terrain Destroyed 826 | . . . . . 314 219 48 . . 166 22 57 Melee . | . . . . . . . . . . . . . Projectile 53 | . . . . . 12 4 . . . 10 13 14 AOE 773 | . . . . . 302 215 48 . . 156 9 43 Terrain Rammed . | . . . . . . . . . . . . . Walls Destroyed . | . . . . . . . . . . . . . Machines Disabled . | . . . . . . . . . . . . . Actions | -11 -10 -10 -10 -9 -8 -7 -6 -5 -5 -5 -5 -5 --------- Run | Yrd Mat Min Exi Min Mat Fac Fac Fac Was Fac Upp War Total 4233 | 117 219 59 266 320 722 569 283 121 142 404 425 586 Wait 95 | . . . . . 15 7 9 . 39 24 1 . Move 3804 | 101 184 58 264 278 636 505 252 119 96 346 402 563 Hop . | . . . . . . . . . . . . . Pick Up 37 | 2 3 1 2 . 14 2 1 . 2 4 5 1 Fast Attach 41 | 7 13 . . 1 3 6 1 2 3 4 . 1 Attach 23 | . . . . 3 6 6 2 . . 1 4 1 Detach 11 | . 2 . . . 3 1 1 . 2 . 1 1 Swap 11 | . 1 . . 1 . 2 1 . . . 3 3 Drop 14 | . 3 . . . 2 1 1 . . 4 1 2 Fire 180 | 7 13 . . 30 43 37 7 . . 21 8 14 Melee 9 | . . . . 7 . 2 . . . . . . Ram . | . . . . . . . . . . . . . Kick . | . . . . . . . . . . . . . Crush . | . . . . . . . . . . . . . Escape Stasis 8 | . . . . . . . 8 . . . . . Rewire . | . . . . . . . . . . . . . Trap . | . . . . . . . . . . . . . Miscellaneous . | . . . . . . . . . . . . . Route ------- -11/Scrapyard -10/Materials -10/Mines -10/Exiles -9/Mines -8/Materials -7/Factory -6/Factory (discovered 3 exits: [*Fac] / Low x2) -5/Factory -5/Waste -5/Factory -5/Upper Caves -5/Warlord History --------- Turn | Location | Event 14 | -11/Scrapyard | Discovered new exit (range 16) 191 | -11/Scrapyard | Entered Materials 305 | -10/Materials | Build established: Mutant 505 | -10/Materials | Discovered new exit (range 6) 555 | -10/Materials | Entered Mines 582 | -10/Mines | Assembled infested the area 641 | -10/Mines | Deemed a non-threat by the Exiles lab entrance 643 | -10/Mines | Discovered new exit (range 5) 649 | -10/Mines | Entered Exiles 686 | -10/Exiles | Met 8R-AWN 715 | -10/Exiles | Met EX-HEX 758 | -10/Exiles | Met EX-BIN 782 | -10/Exiles | Aligned with FarCom system 784 | -10/Exiles | Given EX-Vault access code 821 | -10/Exiles | Opened EX-Vault 835 | -10/Exiles | Found YOLO Cannon 866 | -10/Exiles | Warned to stay clear of 0b10 Research branches 913 | -10/Exiles | Met EX-DEC 1061 | -10/Exiles | Discovered new exit (range 10) 1074 | -10/Exiles | Left Exiles lab with YOLO Cannon 1074 | -10/Exiles | Entered Mines 1163 | -9/Mines | Learned location of Storage (-9) 1454 | -9/Mines | Core integrity fell below 50% 1570 | -9/Mines | Discovered new exit (range 12) 1584 | -9/Mines | Entered Materials 1584 | -8/Materials | Evolved 4 slots: Propulsion x1, Utility x1, Weapon x2 1877 | -8/Materials | Build established: Scavenger-Skirmisher 2422 | -8/Materials | Build established: Skirmisher 2802 | -8/Materials | Discovered new exit (range 16) 2842 | -8/Materials | Entered Factory 2842 | -7/Factory | Evolved 2 slots: Propulsion x1, Utility x1 3155 | -7/Factory | Build established: Tank 3490 | -7/Factory | Garrison activated, responded to threat 3831 | -7/Factory | Discovered new exit (range 11) 3890 | -7/Factory | Entered another Factory area 3890 | -6/Factory | Evolved 2 slots: Utility x2 4117 | -6/Factory | Identified exit to Lower Caves 4208 | -6/Factory | Discovered new exit (range 9) 4240 | -6/Factory | First assault squad dispatched 4269 | -6/Factory | Entered another Factory area 4269 | -5/Factory | Evolved 2 slots: Power x1, Utility x1 4373 | -5/Factory | Build established: Skirmisher 4456 | -5/Factory | Sucked down chute 4456 | -5/Factory | Entered Waste 4457 | -5/Waste | Joined by Warlord forces that had cleared the area 4572 | -5/Waste | Discovered new exit (range 16) 4655 | -5/Waste | Entered Factory 4655 | -5/Factory | Accompanied by 20 allies 4793 | -5/Factory | Build established: Scavenger-Tank 5005 | -5/Factory | Lost 7 allies 5156 | -5/Factory | Garrison activated, responded to threat 5214 | -5/Factory | Lost 4 allies 5255 | -5/Factory | First assault squad dispatched 5272 | -5/Factory | Discovered new exit (range 15) 5321 | -5/Factory | Entered Upper Caves 5321 | -5/Upper Caves | Accompanied by 3 allies 5352 | -5/Upper Caves | Lost 3 allies 5987 | -5/Upper Caves | A Derelict revealed a hidden shortcut to "reach the base" 6007 | -5/Upper Caves | Identified exit to Warlord 6010 | -5/Upper Caves | Entered Warlord 6098 | -5/Warlord | System corruption cleaned by Quarantine Array 6382 | -5/Warlord | Met Warlord 6407 | -5/Warlord | Warlord's base attacked by MAIN.C 6757 | -5/Warlord | Warlord forces counterattacked 6873 | -5/Warlord | Opened side exit 6914 | -5/Warlord | Spotted Striker 6930 | -5/Warlord | Core integrity fell below 50% 6949 | -5/Warlord | Core integrity fell below 20% 6949 | -5/Warlord | Destroyed Striker 6971 | -5/Warlord | Core melted Last Messages --------------- 06963_ Penetrated by Slug. 06964_ The unstable cave ceiling collapses. 06965_ Overheating: Imp. Focal Shield damaged (-12). 06965_ Overheating: Adv. Plasma Cannon damaged (-13). 06965_ Overheating: Neutrino Core damaged (-8). 06966_ The unstable cave ceiling collapses. 06967_ Power failure, Neutrino Core shutdown. 06967_ The unstable cave ceiling collapses. 06967_ Neutrino Core destroyed. 06967_ Linear Accelerator destroyed. 06967_ Adv. Plasma Cannon destroyed. 06968_ Overheating: Energy bleed (-5). 06969_ The unstable cave ceiling collapses. 06970_ Overheating: Imp. Focal Shield damaged (-4). 06970_ The unstable cave ceiling collapses. 06970_ Penetrated by Slug. 06971_ Overheating: Core damaged (-190). Map ----- +----------------------------------------------------+ | ##?#????###??#?? ???#??#??????? | | ????????#??????? ?#??#??????? | | #?##???#?#?##??#????????? ???? | | ?#?##???????#???# ?? ??? ?????? | | ???#???#?##???#???????#?????##? | | ##????#??##??###??#?? ###?? #? | | "#############?????# ##? #?? | | """"""""""""##??????? # #??? | | """"""""""""######??# #???? | | ### ### #?#?? | | + # b #??? | | + ; l ##? | | #### "; * ! #? | | """"""""""""#?### ## # | | """"" """"""##### ; ## | | "############?### ## # | | ###??#?######?### # % # | | #?########?##### # d # | | ###?#######?### ## ## | | #?######??####; "#?; ## | | ##########?# " ;### ## | | ??#?#?##?#?# "%= ; # | | #####?###### " %!##% # | | ??###??##### "%%"### | | ?#?####??####" "#### # # | | #???#?####### ### @ # | | ?#?#?##??### ## # | | ####?#?##### ## ## # | | #?##?### # #### # | | #??#### #### # # | | ?#??#?# #### # | | ?####?# ## #?## # | | ##?######### ###### ## | | ???##????## ######### ## ### | | ??##?###?## ########?########? | | #####?###?# ##########?####### | | #?#??#??### #??##########?##?? | | ##?######## ######?##???##???# | | ########?## #########?##?###?# | | ?#?#?###??# ^####??#??#####???? | | ##?##?#?#?# ##?#?##?#?##??##?# | | ########### ###?########?##?## | | ######?#?###?????# | | #?###????######?## | | ##############?###?#??####?#??? | | #?????#??#??#?##########??##?#? | | #?#????????#??###??###????????? | | ?#????##?#?#??#??#?###????????? | | ?#?#?#????????#???????????????? | | ????????#????#????##??????????? | +----------------------------------------------------+ Best States ------------- Heat Dissipation 54 Energy Generation 33 Energy Capacity 525 Matter Stores 300 Matter Capacity 300 Sight Range 16 Terrain Scan Range 16 Terrain Scan Density 110 Armor Coverage 300 Resistance: KI 25 Utility Shielding 90 Evasion (%) 40 Targeting Accuracy 6 Recoil Reduction 4 Item Schematics ----------------- None Robot Schematics ------------------ None Fabricated ------------ Nothing Repaired ---------- Nothing Studied --------- None Alien Tech Used ----------------- None Achievements -------------- None Challenges ------------ None Game ------ Seed DisintegrationGodPurifier Manual? 0 Play Time 00:38:27 Cumulative 140.4 hours Start 2026.07.28 @ 03:35:48 End 2026.07.28 @ 04:14:25 Sessions 1 Manual Loads 0 Difficulty Rogue Special Mode None Game No. 290 Rogue 290 Adventurer 0 Explorer 0 Win Type - Total 1 Types 1/0/0/0/0/0/0/0/0/0 Lore% 56 Gallery% 55 Achievement% 43 Wizard Run 0 Options --------- Layout 2 ASCII 0 Keyboard 1 Movement Arrows Keybinds 0 Fullscreen 1 Font 24/Smallcaps Map View 50x44 Zoom Use 0% Tactical HUD 1 Map Filters NONE Filters NONE Steam 1 RUN: 35847a10-b3f3-4cb0-af09-cc48cfca62af